fUST/lending_fUST_20250505
["ID","MTS","AMOUNT","RATE_DAILY","PERIOD"]
[359967695,1746454242225,-3180.48,0.00035616,14]
[359967696,1746454242234,-400.0,0.00035616,14]
[359967697,1746454242244,-400.0,0.00035616,14]
[359967698,1746454242253,-506.38463056,0.00035616,14]
[359967699,1746454242361,-400.0,0.00035616,14]
[359967700,1746454242371,-400.0,0.00035616,14]
[359967701,1746454242381,-400.0,0.00035616,14]
[359967702,1746454242391,-400.0,0.00035616,14]
[359967703,1746454242400,-400.0,0.00035616,14]
[359967704,1746454242409,-400.0,0.00035616,14]
[359967705,1746454242421,-400.0,0.00035616,14]
[359967706,1746454242430,-620.84,0.00035616,14]
[359967707,1746454242439,-500.0,0.00035616,14]
[359967708,1746454242451,-400.0,0.00035616,14]
[359967709,1746454242460,-400.0,0.00035616,14]
[359967710,1746454242470,-400.0,0.00035616,14]
[359967711,1746454242479,-400.0,0.00035616,14]
[359967712,1746454242489,-400.0,0.00035616,14]
[359967713,1746454242498,-400.0,0.00035616,14]
[359967714,1746454242508,-428.87543579,0.00035616,14]
[359967715,1746454242518,-400.0,0.00035616,14]
[359967716,1746454242528,-400.0,0.00035616,14]
[359967717,1746454242538,-400.0,0.00035616,14]
[359967718,1746454242547,-400.0,0.00035616,14]
[359967719,1746454242556,-507.50578314,0.00035616,14]
[359967720,1746454242565,-400.0,0.00035616,14]
[359967721,1746454242575,-400.0,0.00035616,14]
[359967722,1746454242585,-400.0,0.00035616,14]
[359967723,1746454242599,-400.0,0.00035616,14]
[359967724,1746454242608,-400.0,0.00035616,14]
[359967725,1746454242617,-400.0,0.00035616,14]
[359967726,1746454242627,-400.0,0.00035616,14]
[359967727,1746454242636,-400.0,0.00035616,14]
[359967728,1746454242645,-400.0,0.00035616,14]
[359967729,1746454242654,-400.0,0.00035616,14]
[359967730,1746454242663,-400.0,0.00035616,14]
[359967731,1746454242676,-211.14600846,0.00035616,14]
[359967732,1746454242685,-418.12434121,0.00035616,14]
[359967733,1746454242696,-400.0,0.00035616,14]
[359967734,1746454242706,-400.0,0.00035616,14]
[359967735,1746454242715,-400.0,0.00035616,14]
[359967736,1746454242725,-400.0,0.00035616,14]
[359967737,1746454242735,-400.0,0.00035616,14]
[359967738,1746454242744,-400.0,0.00035616,14]
[359967739,1746454242754,-740.25,0.00035616,14]
[359967740,1746454242764,-400.0,0.00035616,14]
[359967741,1746454242773,-400.0,0.00035616,14]
[359967742,1746454242782,-400.0,0.00035616,14]
[359967743,1746454242792,-982.41,0.00035616,14]
[359967744,1746454242801,-400.0,0.00035616,14]
[359967745,1746454242811,-400.0,0.00035616,14]
[359967746,1746454242820,-400.0,0.00035616,14]
[359967747,1746454242829,-408.9785564,0.00035616,14]
[359967748,1746454242839,-400.0,0.00035616,14]
[359967749,1746454242849,-400.0,0.00035616,14]
[359967751,1746454242858,-400.0,0.00035616,14]
[359967753,1746454242867,-400.0,0.00035616,14]
[359967755,1746454242877,-464.74,0.00035616,14]
[359967757,1746454242886,-402.32,0.00035616,14]
[359967758,1746454242896,-400.0,0.00035616,14]
[359967759,1746454242905,-400.0,0.00035616,14]
[359967761,1746454242914,-400.0,0.00035616,14]
[359967762,1746454242923,-500.0,0.00035616,14]
[359967763,1746454242933,-500.0,0.00035616,14]
[359967764,1746454242942,-500.0,0.00035616,14]
[359967765,1746454242952,-400.0,0.00035616,14]
[359967766,1746454242962,-500.0,0.00035616,14]
[359967767,1746454242971,-500.0,0.00035616,14]
[359967768,1746454242981,-500.0,0.00035616,14]
[359967769,1746454242990,-500.0,0.00035616,14]
[359967770,1746454242999,-500.0,0.00035616,14]
[359967771,1746454243009,-500.0,0.00035616,14]
[359967772,1746454243018,-500.0,0.00035616,14]
[359967773,1746454243028,-401.20908056,0.00035616,14]
[359967774,1746454243038,-484.71,0.00035616,14]
[359967775,1746454243048,-406.58709756,0.00035616,14]
[359967776,1746454243057,-169.34703786,0.00035616,14]
[359967778,1746454243067,-400.0,0.00035616,14]
[359967780,1746454243077,-400.0,0.00035616,14]
[359967783,1746454243086,-167.59209837,0.00035616,14]
[359967784,1746454243096,-531.28,0.00035616,14]
[359967786,1746454243105,-1020.78,0.00035616,14]
[359967789,1746454243115,-400.0,0.00035616,14]
[359967791,1746454243124,-1383.61,0.00035616,14]
[359967792,1746454243133,-400.0,0.00035616,14]
[359967793,1746454243143,-400.0,0.00035616,14]
[359967794,1746454243152,-500.0,0.00035616,7]
[359967795,1746454243161,-500.0,0.00035616,7]
[359967796,1746454243171,-400.0,0.00035616,14]
[359967798,1746454243180,-891.59,0.00035616,14]
[359967799,1746454243189,-400.0,0.00035616,14]
[359967800,1746454243200,-400.0,0.00035616,14]
[359967801,1746454243210,-500.0,0.00035616,7]
[359967802,1746454243220,-400.0,0.00035616,14]
[359967803,1746454243229,-400.0,0.00035616,14]
[359967805,1746454243238,-400.0,0.00035616,14]
[359967807,1746454243248,-400.0,0.00035616,14]
[359967809,1746454243258,-500.0,0.00035616,7]
[359967811,1746454243267,-1500.0,0.00035616,30]
[359967813,1746454243276,-500.0,0.00035616,7]
[359967815,1746454243286,-1771.39,0.00035616,14]
[359967817,1746454243295,-400.0,0.00035616,14]
[359967819,1746454243305,-895.29,0.00035616,14]
[359967820,1746454243314,-151.0,0.00035616,7]
[359967821,1746454243324,-400.0,0.00035616,14]
[359967822,1746454243333,-151.0,0.00035616,7]
[359967823,1746454243342,-400.0,0.00035616,14]
[359967824,1746454243352,-500.0,0.00035616,7]
[359967825,1746454243361,-400.0,0.00035616,14]
[359967826,1746454243371,-401.44533805,0.00035616,14]
[359967827,1746454243381,-400.0,0.00035616,14]
[359967828,1746454243390,-854.25,0.00035616,14]
[359967829,1746454243400,-151.0,0.00035616,14]
[359967830,1746454243410,-400.0,0.00035616,14]
[359967831,1746454243420,-400.0,0.00035616,14]
[359967832,1746454243430,-400.0,0.00035616,14]
[359967833,1746454243439,-500.0,0.00035616,7]
[359967834,1746454243449,-400.0,0.00035616,14]
[359967835,1746454243459,-151.0,0.00035616,7]
[359967836,1746454243469,-400.0,0.00035616,14]
[359967837,1746454243479,-500.0,0.00035616,7]
[359967838,1746454243488,-239.3957205,0.00035616,14]
[359967839,1746454243498,-400.0,0.00035616,14]
[359967840,1746454243508,-151.0,0.00035616,7]
[359967841,1746454243518,-400.0,0.00035616,14]
[359967842,1746454243528,-171.29941998,0.00035616,14]
[359967843,1746454243537,-400.0,0.00035616,14]
[359967844,1746454243547,-264.41960271,0.00035616,7]
[359967845,1746454243556,-400.0,0.00035616,14]
[359967846,1746454243566,-400.0,0.00035616,14]
[359967847,1746454243575,-400.0,0.00035616,14]
[359967848,1746454243586,-400.0,0.00035616,14]
[359967849,1746454243598,-400.0,0.00035616,14]
[359967850,1746454243608,-400.0,0.00035616,14]
[359967851,1746454243617,-400.0,0.00035616,14]
[359967852,1746454243626,-400.0,0.00035616,14]
[359967853,1746454243637,-412.22,0.00035616,14]
[359967854,1746454243646,-400.0,0.00035616,14]
[359967855,1746454243655,-400.0,0.00035616,14]
[359967856,1746454243666,-403.94257819,0.00035616,14]
[359967858,1746454243675,-507.45487003,0.00035616,14]
[359967860,1746454243685,-400.0,0.00035616,14]
[359967862,1746454243694,-400.0,0.00035616,14]
[359967863,1746454243703,-400.0,0.00035616,14]
[359967864,1746454243713,-400.0,0.00035616,14]
[359967865,1746454243722,-400.0,0.00035616,14]
[359967866,1746454243732,-400.0,0.00035616,14]
[359967867,1746454243742,-400.0,0.00035616,14]
[359967868,1746454243752,-400.0,0.00035616,14]
[359967869,1746454243761,-400.0,0.00035616,14]
[359967870,1746454243771,-400.0,0.00035616,14]
[359967871,1746454243781,-400.0,0.00035616,14]
[359967872,1746454243790,-400.0,0.00035616,14]
[359967873,1746454243800,-400.7205851,0.00035616,14]
[359967874,1746454243809,-400.0,0.00035616,14]
[359967875,1746454243819,-941.89,0.00035616,14]
[359967876,1746454243828,-400.0,0.00035616,14]
[359967877,1746454243837,-400.0,0.00035616,14]
[359967878,1746454243847,-400.0,0.00035616,14]
[359967879,1746454243856,-400.0,0.00035616,14]
[359967880,1746454243866,-404.7947923,0.00035616,14]
[359967881,1746454243875,-400.0,0.00035616,14]
[359967882,1746454243885,-400.0,0.00035616,14]
[359967883,1746454243894,-400.0,0.00035616,14]
[359967884,1746454243904,-1094.73,0.00035616,14]
[359967885,1746454243913,-400.0,0.00035616,14]
[359967886,1746454243923,-504.74,0.00035616,14]
[359967887,1746454243933,-212.47654655,0.00035616,14]
[359967888,1746454243943,-401.06877182,0.00035616,14]
[359967889,1746454243952,-400.0,0.00035616,14]
[359967890,1746454243961,-400.0,0.00035616,14]
[359967891,1746454243972,-306.14520155,0.00035616,14]
[359967892,1746454243982,-400.0,0.00035616,14]
[359967893,1746454243991,-458.58404346,0.00035616,14]
[359967894,1746454244002,-786.95,0.00035616,14]
[359967895,1746454244011,-182.23035355,0.00035616,7]
[359967896,1746454244022,-3393.835898,0.00035616,2]
[359967897,1746454244032,-568.43,0.00035616,14]
[359967898,1746454244042,-400.0,0.00035616,14]
[359967899,1746454244052,-400.0,0.00035616,14]
[359967900,1746454244061,-3393.835898,0.00035616,2]
[359967901,1746454244071,-608.34,0.00035616,14]
[359967902,1746454244081,-400.0,0.00035616,14]
[359967903,1746454244090,-400.0,0.00035616,14]
[359967904,1746454244194,-402.38978309,0.00035616,5]
[359967905,1746454244205,-400.0,0.00035616,14]
[359967906,1746454244214,-3359.83,0.00035616,2]
[359967907,1746454244224,-400.0,0.00035616,14]
[359967908,1746454244234,-8777.18,0.00035616,14]
[359967909,1746454244243,-250.82137242,0.00035616,7]
[359967910,1746454244254,-400.0,0.00035616,14]
[359967911,1746454244263,-428.58101547,0.00035616,14]
[359967912,1746454244273,-500.0,0.00035616,7]
[359967913,1746454244283,-543.68,0.00035616,14]
[359967914,1746454244293,-400.0,0.00035616,14]
[359967915,1746454244303,-151.32069639,0.00035616,7]
[359967916,1746454244314,-403.12679645,0.00035616,14]
[359967917,1746454244323,-400.0,0.00035616,14]
[359967918,1746454244332,-500.0,0.00035616,7]
[359967919,1746454244343,-166.60402618,0.00035616,7]
[359967920,1746454244353,-400.0,0.00035616,14]
[359967921,1746454244362,-169.29999015,0.00035616,14]
[359967922,1746454244372,-500.0,0.00035616,7]
[359967923,1746454244381,-400.0,0.00035616,14]
[359967924,1746454244393,-602.44,0.00035616,14]
[359967925,1746454244403,-151.0,0.00035616,7]
[359967926,1746454244412,-400.0,0.00035616,14]
[359967927,1746454244421,-400.0,0.00035616,14]
[359967928,1746454244431,-400.0,0.00035616,14]
[359967929,1746454244442,-400.0,0.00035616,14]
[359967930,1746454244452,-400.0,0.00035616,14]
[359967931,1746454244462,-400.0,0.00035616,14]
[359967932,1746454244472,-400.0,0.00035616,14]
[359967933,1746454244482,-201.95468706,0.00035616,14]
[359967934,1746454244493,-2446.41,0.00035616,14]
[359967935,1746454244504,-1492.44,0.00035616,14]
[359967936,1746454244515,-406.0448939,0.00035616,14]
[359967937,1746454244525,-400.0,0.00035616,14]
[359967938,1746454244535,-507.273617,0.00035616,14]
[359967939,1746454244545,-500.0,0.00035616,14]
[359967940,1746454244555,-500.0,0.00035616,14]
[359967941,1746454244565,-400.0,0.00035616,14]
[359967942,1746454244575,-400.0,0.00035616,14]
[359967943,1746454244586,-500.0,0.00035616,14]
[359967944,1746454244598,-576.42182851,0.00035616,14]
[359967945,1746454244607,-400.0,0.00035616,14]
[359967946,1746454244617,-400.0,0.00035616,14]
[359967947,1746454244626,-633.69,0.00035616,14]
[359967948,1746454244636,-400.0,0.00035616,14]
[359967949,1746454244646,-400.0,0.00035616,14]
[359967950,1746454244655,-466.23,0.00035616,14]
[359967951,1746454244666,-400.0,0.00035616,14]
[359967952,1746454244676,-330.21705383,0.00035616,14]
[359967953,1746454244686,-400.0,0.00035616,14]
[359967954,1746454244697,-400.0,0.00035616,14]
[359967955,1746454244707,-500.0,0.00035616,14]
[359967956,1746454244717,-500.0,0.00035616,14]
[359967957,1746454244726,-2479.24,0.00035616,14]
[359967958,1746454244736,-151.0,0.00035616,14]
[359967959,1746454244745,-151.0,0.00035616,14]
[359967960,1746454244754,-150.83162821,0.00035616,14]
[359967961,1746454244764,-400.0,0.00035616,14]
[359967962,1746454244774,-400.0,0.00035616,12]
[359967963,1746454244783,-151.0,0.00035616,14]
[359967964,1746454244792,-400.0,0.00035616,14]
[359967965,1746454244802,-400.0,0.00035616,14]
[359967966,1746454244811,-400.0,0.00035616,14]
[359967967,1746454244821,-151.0,0.00035616,14]
[359967968,1746454244831,-400.0,0.00035616,14]
[359967969,1746454244840,-517.35276652,0.00035616,14]
[359967970,1746454244849,-431.93476324,0.00035616,14]
[359967971,1746454244859,-300.88658357,0.00035616,14]
[359967972,1746454244869,-400.0,0.00035616,14]
[359967973,1746454244878,-400.0,0.00035616,14]
[359967974,1746454244888,-403.03555728,0.00035616,14]
[359967975,1746454244897,-400.0,0.00035616,14]
[359967976,1746454244906,-400.0,0.00035616,14]
[359967977,1746454244916,-2491.21,0.00035616,14]
[359967978,1746454244925,-1702.38,0.00035616,14]
[359967979,1746454244934,-3268.93,0.00035616,14]
[359967980,1746454244943,-400.0,0.00035616,14]
[359967981,1746454244953,-3628.98,0.00035616,14]
[359967982,1746454244963,-444.65,0.00035616,14]
[359967983,1746454244972,-400.0,0.00035616,14]
[359967984,1746454244982,-400.0,0.00035616,14]
[359967985,1746454244991,-533.77,0.00035616,14]
[359967986,1746454245000,-400.0,0.00035616,14]
[359967987,1746454245011,-400.0,0.00035616,14]
[359967988,1746454245020,-1156.83,0.00035616,14]
[359967989,1746454245029,-400.0,0.00035616,14]
[359967990,1746454245039,-2862.4,0.00035616,14]
[359967991,1746454245047,-400.0,0.00035616,14]
[359967992,1746454245057,-400.0,0.00035616,14]
[359967993,1746454245066,-400.0,0.00035616,14]
[359967994,1746454245075,-400.0,0.00035616,14]
[359967995,1746454245085,-402.11863792,0.00035616,14]
[359967996,1746454245094,-2352.28,0.00035616,14]
[359967997,1746454245103,-400.0,0.00035616,14]
[359967998,1746454245112,-400.0,0.00035616,14]
[359967999,1746454245121,-400.0,0.00035616,14]
[359968000,1746454245130,-400.0,0.00035616,14]
[359968001,1746454245139,-244.83801744,0.00035616,14]
[359968002,1746454245149,-3619.2,0.00035616,14]
[359968003,1746454245158,-871.31,0.00035616,14]
[359968004,1746454245168,-400.0,0.00035616,2]
[359968005,1746454245177,-404.00223548,0.00035616,14]
[359968006,1746454245187,-153.37407389,0.00035616,14]
[359968007,1746454245197,-1328.74,0.00035616,14]
[359968008,1746454245207,-199.826802,0.00035616,14]
[359968009,1746454245217,-400.0,0.00035616,14]
[359968010,1746454245226,-402.12143597,0.00035616,14]
[359968011,1746454245235,-718.53,0.00035616,14]
[359968012,1746454245245,-400.0,0.00035616,14]
[359968013,1746454245255,-400.0,0.00035616,14]
[359968014,1746454245264,-1047.5,0.00035616,14]
[359968015,1746454245273,-400.0,0.00035616,14]
[359968016,1746454245283,-400.0,0.00035616,14]
[359968017,1746454245292,-400.0,0.00035616,14]
[359968018,1746454245302,-400.0,0.00035616,14]
[359968019,1746454245311,-432.21,0.00035616,14]
[359968020,1746454245320,-400.0,0.00035616,14]
[359968021,1746454245330,-773.75,0.00035616,14]
[359968022,1746454245339,-627.6,0.00035616,14]
[359968023,1746454245348,-300.0,0.00035616,14]
[359968024,1746454245358,-1750.46,0.00035616,14]
[359968025,1746454245368,-408.04723905,0.00035616,14]
[359968026,1746454245377,-400.0,0.00035616,14]
[359968027,1746454245386,-400.0,0.00035616,14]
[359968028,1746454245395,-433.61,0.00035616,14]
[359968029,1746454245405,-278.11550455,0.00035616,14]
[359968030,1746454245414,-400.0,0.00035616,14]
[359968031,1746454245424,-400.0,0.00035616,14]
[359968032,1746454245433,-172.99638,0.00035616,14]
[359968033,1746454245443,-172.99638,0.00035616,14]
[359968034,1746454245452,-564.24,0.00035616,14]
[359968035,1746454245462,-400.0,0.00035616,14]
[359968036,1746454245470,-400.0,0.00035616,14]
[359968037,1746454245479,-172.99638,0.00035616,14]
[359968038,1746454245488,-172.99638,0.00035616,14]
[359968039,1746454245497,-501.5237928,0.00035616,14]
[359968040,1746454245506,-4235.45,0.00035616,14]
[359968041,1746454245515,-400.0,0.00035616,14]
[359968042,1746454245525,-400.0,0.00035616,14]
[359968043,1746454245533,-400.0,0.00035616,14]
[359968044,1746454245543,-400.0,0.00035616,14]
[359968045,1746454245552,-400.0,0.00035616,14]
[359968046,1746454245560,-2103.88,0.00035616,14]
[359968047,1746454245569,-1282.74,0.00035616,14]
[359968048,1746454245578,-400.0,0.00035616,14]
[359968049,1746454245590,-720.23,0.00035616,14]
[359968050,1746454245599,-400.0,0.00035616,14]
[359968051,1746454245608,-400.0,0.00035616,14]
[359968052,1746454245617,-788.13,0.00035616,14]
[359968053,1746454245626,-400.0,0.00035616,14]
[359968054,1746454245635,-917.67,0.00035616,14]
[359968055,1746454245644,-292.47179281,0.00035616,14]
[359968056,1746454245653,-151.0,0.00035616,14]
[359968057,1746454245662,-158.239787,0.00035616,14]
[359968058,1746454245674,-400.0,0.00035616,14]
[359968059,1746454245685,-2208.91,0.00035616,14]
[359968060,1746454245694,-750.72,0.00035616,14]
[359968061,1746454245703,-1520.57,0.00035616,14]
[359968062,1746454245712,-2203.42,0.00035616,14]
[359968063,1746454245722,-12607.13495863,0.00035616,7]
[359968064,1746454245731,-400.0,0.00035616,14]
[359968065,1746454245740,-469.3636609,0.00035616,14]
[359968066,1746454245749,-151.0,0.00035616,14]
[359968067,1746454245758,-151.0,0.00035616,14]
[359968068,1746454245768,-400.0,0.00035616,14]
[359968069,1746454245777,-1544.4,0.00035616,14]
[359968070,1746454245871,-400.0,0.00035616,14]
[359968071,1746454245881,-991.21,0.00035616,14]
[359968072,1746454245891,-400.0,0.00035616,14]
[359968073,1746454245900,-400.0,0.00035616,14]
[359968074,1746454245909,-400.0,0.00035616,14]
[359968075,1746454245918,-400.0,0.00035616,14]
[359968076,1746454245927,-511.3094572,0.00035616,14]
[359968077,1746454245936,-400.0,0.00035616,14]
[359968078,1746454245946,-151.0,0.00035616,14]
[359968079,1746454245955,-400.0,0.00035616,14]
[359968081,1746454245965,-152.992381,0.00035616,14]
[359968084,1746454245974,-500.0,0.00035616,14]
[359968086,1746454245983,-350.34277277,0.00035616,14]
[359968087,1746454245992,-916.95,0.00035616,14]
[359968089,1746454246001,-400.0,0.00035616,14]
[359968090,1746454246010,-400.0,0.00035616,14]
[359968092,1746454246019,-916.95,0.00035616,14]
[359968093,1746454246028,-432.85,0.00035616,14]
[359968095,1746454246037,-916.95,0.00035616,14]
[359968096,1746454246047,-916.95,0.00035616,14]
[359968097,1746454246056,-916.95,0.00035616,14]
[359968098,1746454246065,-400.0,0.00035616,14]
[359968099,1746454246075,-400.0,0.00035616,14]
[359968100,1746454246084,-580.36,0.00035616,14]
[359968101,1746454246093,-916.95,0.00035616,14]
[359968102,1746454246102,-916.95,0.00035616,14]
[359968103,1746454246111,-916.95,0.00035616,14]
[359968104,1746454246120,-916.95,0.00035616,14]
[359968105,1746454246129,-916.95,0.00035616,14]
[359968106,1746454246139,-400.0,0.00035616,14]
[359968107,1746454246148,-916.95,0.00035616,14]
[359968108,1746454246157,-400.0,0.00035616,14]
[359968109,1746454246167,-916.95,0.00035616,14]
[359968110,1746454246176,-916.95,0.00035616,14]
[359968111,1746454246186,-916.95,0.00035616,14]
[359968112,1746454246197,-916.95,0.00035616,14]
[359968113,1746454246206,-916.95,0.00035616,14]
[359968114,1746454246216,-916.95,0.00035616,14]
[359968115,1746454246225,-950.57,0.00035616,14]
[359968116,1746454246234,-463.29,0.00035616,14]
[359968117,1746454246244,-916.95,0.00035616,14]
[359968118,1746454246253,-916.95,0.00035616,14]
[359968119,1746454246263,-916.95,0.00035616,14]
[359968121,1746454246273,-916.95,0.00035616,14]
[359968123,1746454246283,-916.95,0.00035616,14]
[359968125,1746454246293,-916.95,0.00035616,14]
[359968127,1746454246302,-916.96639855,0.00035616,14]
[359968129,1746454246312,-2875.16,0.00035616,14]
[359968131,1746454246322,-841.77443764,0.00035616,7]
[359968133,1746454246332,-160.13135596,0.00035616,14]
[359968135,1746454246342,-400.0,0.00035616,14]
[359968137,1746454246351,-400.0,0.00035616,14]
[359968139,1746454246362,-892.28,0.00035616,14]
[359968142,1746454246372,-400.0,0.00035616,14]
[359968144,1746454246381,-1840.41,0.00035616,14]
[359968146,1746454246391,-400.0,0.00035616,14]
[359968148,1746454246401,-1835.09,0.00035616,14]
[359968150,1746454246410,-468.63,0.00035616,14]
[359968152,1746454246420,-400.0,0.00035616,14]
[359968154,1746454246429,-400.0,0.00035616,14]
[359968156,1746454246438,-400.0,0.00035616,14]
[359968158,1746454246448,-2307.51,0.00035616,14]
[359968160,1746454246457,-151.0,0.00035616,14]
[359968162,1746454246467,-151.0,0.00035616,14]
[359968164,1746454246476,-1372.11,0.00035616,14]
[359968166,1746454246485,-400.0,0.00035616,14]
[359968168,1746454246494,-400.0,0.00035616,14]
[359968170,1746454246503,-400.0,0.00035616,14]
[359968172,1746454246512,-400.0,0.00035616,14]
[359968174,1746454246522,-151.0,0.00035616,14]
[359968176,1746454246532,-2124.78,0.00035616,14]
[359968178,1746454246541,-151.0,0.00035616,14]
[359968180,1746454246551,-400.0,0.00035616,14]
[359968182,1746454246560,-1377.05,0.00035616,14]
[359968184,1746454246569,-400.0,0.00035616,14]
[359968186,1746454246578,-400.0,0.00035616,14]
[359968188,1746454246589,-400.0,0.00035616,14]
[359968190,1746454246600,-400.0,0.00035616,14]
[359968192,1746454246609,-400.0,0.00035616,14]
[359968194,1746454246620,-1796.29,0.00035616,14]
[359968196,1746454246630,-400.0,0.00035616,14]
[359968198,1746454246639,-400.0,0.00035616,14]
[359968199,1746454246648,-400.0,0.00035616,14]
[359968202,1746454246658,-151.0,0.00035616,14]
[359968204,1746454246668,-151.0,0.00035616,14]
[359968206,1746454246679,-1103.17,0.00035616,14]
[359968208,1746454246688,-400.0,0.00035616,14]
[359968210,1746454246698,-400.0,0.00035616,14]
[359968212,1746454246707,-151.0,0.00035616,14]
[359968214,1746454246716,-151.0,0.00035616,14]
[359968216,1746454246726,-1009.54,0.00035616,14]
[359968218,1746454246736,-400.0,0.00035616,14]
[359968220,1746454246746,-400.0,0.00035616,14]
[359968222,1746454246755,-400.0,0.00035616,14]
[359968224,1746454246765,-658.04,0.00035616,14]
[359968226,1746454246774,-525.97,0.00035616,14]
[359968227,1746454246783,-400.0,0.00035616,14]
[359968230,1746454246793,-400.0,0.00035616,14]
[359968232,1746454246803,-417.11,0.00035616,14]
[359968234,1746454246812,-692.12,0.00035616,14]
[359968236,1746454246822,-400.0,0.00035616,14]
[359968238,1746454246832,-504.59484258,0.00035616,14]
[359968240,1746454246841,-5047.85,0.00035616,14]
[359968242,1746454246851,-12121.33,0.00035616,14]
[359968244,1746454246860,-400.0,0.00035616,14]
[359968246,1746454246869,-502.85992074,0.00035616,14]
[359968248,1746454246879,-541.8784919,0.00035616,14]
[359968250,1746454246887,-400.0,0.00035616,14]
[359968252,1746454246897,-400.0,0.00035616,14]
[359968253,1746454246906,-400.0,0.00035616,14]
[359968254,1746454246915,-400.0,0.00035616,14]
[359968255,1746454246924,-487.24,0.00035616,14]
[359968256,1746454246934,-1952.69,0.00035616,14]
[359968257,1746454246943,-400.0,0.00035616,14]
[359968258,1746454246953,-400.0,0.00035616,14]
[359968259,1746454246963,-400.0,0.00035616,14]
[359968260,1746454246972,-798.09,0.00035616,14]
[359968261,1746454246981,-400.0,0.00035616,14]
[359968262,1746454246990,-400.0,0.00035616,14]
[359968263,1746454247000,-151.0,0.00035616,14]
[359968264,1746454247010,-400.0,0.00035616,14]
[359968265,1746454247019,-151.0,0.00035616,14]
[359968266,1746454247028,-400.0,0.00035616,14]
[359968268,1746454247037,-400.0,0.00035616,14]
[359968270,1746454247046,-400.0,0.00035616,14]
[359968272,1746454247055,-400.0,0.00035616,14]
[359968273,1746454247065,-400.0,0.00035616,14]
[359968275,1746454247074,-7318.88,0.00035616,14]
[359968278,1746454247083,-1539.51,0.00035616,14]
[359968280,1746454247092,-400.0,0.00035616,14]
[359968282,1746454247102,-400.0,0.00035616,14]
[359968283,1746454247111,-400.0,0.00035616,14]
[359968286,1746454247120,-400.0,0.00035616,14]
[359968287,1746454247129,-400.0,0.00035616,14]
[359968289,1746454247138,-509.16735731,0.00035616,14]
[359968291,1746454247147,-455.0,0.00035616,14]
[359968293,1746454247156,-400.0,0.00035616,14]
[359968295,1746454247166,-400.0,0.00035616,8]
[359968297,1746454247175,-400.0,0.00035616,14]
[359968300,1746454247184,-400.0,0.00035616,14]
[359968301,1746454247194,-400.0,0.00035616,14]
[359968303,1746454247203,-400.0,0.00035616,14]
[359968305,1746454247212,-400.0,0.00035616,14]
[359968307,1746454247222,-400.0,0.00035616,14]
[359968309,1746454247232,-400.0,0.00035616,14]
[359968311,1746454247241,-9280.05,0.00035616,14]
[359968313,1746454247251,-400.0,0.00035616,2]
[359968315,1746454247260,-2636.98,0.00035616,14]
[359968317,1746454247269,-400.0,0.00035616,14]
[359968320,1746454247279,-151.0,0.00035616,14]